[Event "2nd Cambridge Open 2024"]
[Site "Cambridge"]
[Date "2024.02.19"]
[Round "2.21"]
[White "Martin, Lewis"]
[Black "Sivanandan, Bodhana"]
[Result "1/2-1/2"]
[ECO "A11"]
[WhiteElo "2144"]
[BlackElo "1856"]
[Annotator "RC"]
[PlyCount "85"]
[EventDate "2024.02.18"]
[EventType "swiss"]
[EventCountry "ENG"]
[SourceTitle "playchess.com"]
[Source "ChessBase"]
[SourceQuality "1"]
[TimeControl "5400+30"]

1. c4 {[%emt 0:00:03]} c6 {[%emt 0:00:11]} 2. g3 {[%emt 0:00:10]} d5 {[%emt 0:00:21]} 3. Bg2 {[%emt 0:00:19]} Nf6 {[%emt 0:00:25]} 4. Nf3 {[%emt 0:00:28]} Bf5 {[%emt 0:00:44]} 5. cxd5 {[%emt 0:08:00]} cxd5 {[%emt 0:00:55]} 6. Qb3 {[%emt 0:06:42]} Qb6 {[%emt 0:01:18]} 7. Qxb6 {[%emt 0:05:58]} axb6 {[%emt 0:00:16]} 8. Nc3 {[%emt 0:00:16]} e6 {[%emt 0:02:19]} 9. O-O {[%emt 0:00:55]} Nc6 {[%emt 0:08:25]} 10. d3 {[%emt 0:01:56]} Bc5 {[%emt 0:04:47]} 11. Bd2 {[%emt 0:05:34]} O-O {[%emt 0:02:27]} 12. a3 {[%emt 0:01:07]} Rfc8 {[%emt 0:07:49]} 13. b4 {[%emt 0:03:18]} Bd4 {[%emt 0:05:05]} 14. b5 {[%emt 0:06:20]} Bxc3 {[%emt 0:01:22]} 15. Bxc3 {[%emt 0:00:09]} Na5 {[%emt 0:02:42]} 16. Bxf6 {[%emt 0:00:50]} gxf6 {[%emt 0:00:17]} 17. Nd4 {[%emt 0:00:36]} Bg6 {[%emt 0:01:20]} 18. g4 {[%emt 0:07:32]} e5 {[%emt 0:03:41]} 19. Nf5 {[%emt 0:01:48]} Bxf5 {[%emt 0:00:11]} 20. gxf5 {[%emt 0:00:04]} d4 {[%emt 0:55:55]} 21. Rac1 {[%emt 0:11:31]} Kf8 {[%emt 0:00:00]} 22. Bd5 {[%emt 0:01:05]} Rd8 {[%emt 0:00:00]} 23. Ba2 {[%emt 0:03:17]} Rac8 {[%emt 0:00:00]} 24. Kg2 {[%emt 0:05:52]} Rc5 {[%emt 0:00:00]} 25. Rxc5 {[%emt 0:00:36]} bxc5 {[%emt 0:00:00]} 26. b6 {[%emt 0:04:05]} Rc8 {[%emt 0:00:00]} 27. Rc1 {[%emt 0:04:55]} Rc6 {[%emt 0:00:00]} 28. Bd5 {[%emt 0:03:04]} Rxb6 {[%emt 0:00:00]} 29. Rxc5 {[%emt 0:00:06]} Nc6 {[%emt 0:00:00]} 30. Kf3 {[%emt 0:07:49]} Ke7 {[%emt 0:00:00]} 31. Rc2 {[%emt 0:01:36]} Kf8 {[%emt 0:00:00]} 32. e4 {[%emt 0:01:42]} Ra6 {[%emt 0:00:00]} 33. Rb2 {[%emt 0:01:59]} Rxa3 {[%emt 0:00:00]} 34. Rxb7 {[%emt 0:00:06]} Ne7 {[%emt 0:00:00]} 35. Bc4 {[%emt 0:00:19]} Ra1 {[%emt 0:00:00]} 36. Rb8+ {[%emt 0:02:57]} Kg7 {[%emt 0:00:00]} 37. Rb7 {[%emt 0:00:22]} Kf8 {[%emt 0:00:00]} 38. Rb8+ {[%emt 0:00:44]} Kg7 {[%emt 0:00:00]} 39. Re8 {[%emt 0:00:14]} Ng8 {[%emt 0:00:00]} 40. h3 {[%emt 0:00:40]} Nh6 {[%emt 0:00:00]} 41. Re7 {[%emt 0:00:21]} Kf8 {[%emt 0:00:00]} 42. Rb7 {[%emt 0:00:17]} Kg7 {[%emt 0:00:00]} 43. Rc7 {[%emt 0:00:36]} 1/2-1/2

[Event "2nd Cambridge Open 2024"]
[Site "Cambridge"]
[Date "2024.02.19"]
[Round "2.22"]
[White "Nawalaniec, Adam"]
[Black "Waller, Dan"]
[Result "1/2-1/2"]
[ECO "B38"]
[WhiteElo "1876"]
[BlackElo "2126"]
[Annotator "RC"]
[PlyCount "94"]
[EventDate "2024.02.18"]
[EventType "swiss"]
[EventCountry "ENG"]
[SourceTitle "playchess.com"]
[Source "ChessBase"]
[SourceQuality "1"]
[TimeControl "5400+30"]

1. e4 {[%emt 0:00:02]} c5 {[%emt 0:00:05]} 2. Nf3 {[%emt 0:00:04]} g6 {[%emt 0:00:05]} 3. c4 {[%emt 0:00:03]} Nc6 {[%emt 0:00:16]} 4. d4 {[%emt 0:00:06]} cxd4 {[%emt 0:00:04]} 5. Nxd4 {[%emt 0:00:03]} Bg7 {[%emt 0:00:08]} 6. Be3 {[%emt 0:00:09]} Nf6 {[%emt 0:00:06]} 7. Nc3 {[%emt 0:00:07]} O-O {[%emt 0:00:06]} 8. Be2 {[%emt 0:00:03]} d6 {[%emt 0:00:06]} 9. f3 {[%emt 0:00:32]} Bd7 {[%emt 0:00:19]} 10. O-O {[%emt 0:00:38]} Nxd4 {[%emt 0:00:35]} 11. Bxd4 {[%emt 0:00:01]} Bc6 {[%emt 0:00:40]} 12. Qd2 {[%emt 0:01:53]} a5 {[%emt 0:00:12]} 13. b3 {[%emt 0:01:14]} Nd7 {[%emt 0:00:34]} 14. Bf2 {[%emt 0:00:44]} Nc5 {[%emt 0:00:53]} 15. Rab1 {[%emt 0:01:19]} b6 {[%emt 0:09:46]} 16. a3 {[%emt 0:05:36]} Nd7 {[%emt 0:05:04]} 17. b4 {[%emt 0:06:17]} axb4 {[%emt 0:00:07]} 18. axb4 {[%emt 0:00:03]} Ra3 {[%emt 0:00:29]} 19. Rfc1 {[%emt 0:01:14]} Qa8 {[%emt 0:05:07]} 20. Nd5 {[%emt 0:05:32]} Bxd5 {[%emt 0:06:25]} 21. cxd5 {[%emt 0:00:41]} Ra2 {[%emt 0:05:01]} 22. Qd3 {[%emt 0:03:11]} f5 {[%emt 0:03:10]} 23. exf5 {[%emt 0:16:29]} Rxf5 {[%emt 0:04:51]} 24. Qb5 {[%emt 0:09:06]} Qa7 {[%emt 0:09:15]} 25. Bc4 {[%emt 0:10:21]} Rxf2 {[%emt 0:20:42]} 26. Kxf2 {[%emt 0:00:51]} Bd4+ {[%emt 0:00:11]} 27. Kf1 {[%emt 0:03:16]} Qa3 {[%emt 0:00:08]} 28. Qxd7 {[%emt 0:10:18]} Rxf3+ {[%emt 0:02:14]} 29. gxf3 {[%emt 0:00:02]} Qxf3+ {[%emt 0:00:06]} 30. Ke1 {[%emt 0:00:06]} Bc3+ {[%emt 0:09:09]} 31. Rxc3 {[%emt 0:00:01]} Qxc3+ {[%emt 0:00:06]} 32. Kd1 {[%emt 0:00:09]} Qd4+ {[%emt 0:00:06]} 33. Kc2 {[%emt 0:00:26]} Qxc4+ {[%emt 0:00:08]} 34. Kb2 {[%emt 0:00:04]} Qxb4+ {[%emt 0:00:15]} 35. Ka2 {[%emt 0:00:08]} Qa5+ {[%emt 0:00:19]} 36. Kb3 {[%emt 0:00:06]} Qxd5+ {[%emt 0:00:04]} 37. Ka3 {[%emt 0:00:17]} Qc5+ {[%emt 0:02:48]} 38. Rb4 {[%emt 0:00:59]} Qc3+ {[%emt 0:02:29]} 39. Ka4 {[%emt 0:06:43]} Qc2+ {[%emt 0:01:12]} 40. Rb3 {[%emt 0:06:21]} Qc4+ {[%emt 0:01:08]} 41. Ka3 {[%emt 0:00:19]} Qc1+ {[%emt 0:00:11]} 42. Ka2 {[%emt 0:01:33]} Qc2+ {[%emt 0:02:03]} 43. Rb2 {[%emt 0:00:47]} Qc4+ {[%emt 0:00:05]} 44. Ka3 {[%emt 0:00:58]} Qc3+ {[%emt 0:00:31]} 45. Rb3 {[%emt 0:00:18]} Qa1+ {[%emt 0:00:58]} 46. Kb4 {[%emt 0:00:03]} Qd4+ {[%emt 0:00:08]} 47. Ka3 {[%emt 0:00:29]} Qa1+ {[%emt 0:00:09]} 1/2-1/2

[Event "2nd Cambridge Open 2024"]
[Site "Cambridge"]
[Date "2024.02.19"]
[Round "2.23"]
[White "Banerjee, Supratit"]
[Black "Skettos, Nicolas"]
[Result "1/2-1/2"]
[ECO "C01"]
[WhiteElo "1984"]
[BlackElo "1880"]
[Annotator "RC"]
[PlyCount "92"]
[EventDate "2024.02.18"]
[EventType "swiss"]
[EventCountry "ENG"]
[SourceTitle "playchess.com"]
[Source "ChessBase"]
[SourceQuality "1"]
[TimeControl "5400+30"]

1. e4 {[%emt 0:00:11]} e6 {[%emt 0:00:05]} 2. d4 {[%emt 0:00:16]} d5 {[%emt 0:00:03]} 3. exd5 {[%emt 0:00:35]} exd5 {[%emt 0:00:06]} 4. Nf3 {[%emt 0:00:09]} Bd6 {[%emt 0:00:25]} 5. Bd3 {[%emt 0:02:20]} Ne7 {[%emt 0:01:31]} 6. O-O {[%emt 0:01:57]} Bg4 {[%emt 0:00:52]} 7. c3 {[%emt 0:00:38]} Nbc6 {[%emt 0:04:06]} 8. b4 {[%emt 0:00:20]} Qd7 {[%emt 0:01:26]} 9. Re1 {[%emt 0:03:25]} O-O {[%emt 0:03:24]} 10. b5 {[%emt 0:08:50]} Nd8 {[%emt 0:05:47]} 11. Nbd2 {[%emt 0:03:05]} Bf5 {[%emt 0:07:49]} 12. Nf1 {[%emt 0:02:10]} Bxd3 {[%emt 0:01:05]} 13. Qxd3 {[%emt 0:00:34]} a6 {[%emt 0:03:06]} 14. bxa6 {[%emt 0:02:45]} Rxa6 {[%emt 0:00:40]} 15. Ne3 {[%emt 0:00:24]} Ne6 {[%emt 0:03:04]} 16. Ng4 {[%emt 0:23:49]} Ng6 {[%emt 0:06:38]} 17. Nge5 {[%emt 0:06:46]} Bxe5 {[%emt 0:05:13]} 18. Nxe5 {[%emt 0:01:52]} Nxe5 {[%emt 0:00:09]} 19. Rxe5 {[%emt 0:00:24]} Rfa8 {[%emt 0:02:57]} 20. a3 {[%emt 0:01:32]} c6 {[%emt 0:06:20]} 21. f4 {[%emt 0:01:37]} f6 {[%emt 0:03:34]} 22. Re1 {[%emt 0:00:29]} Re8 {[%emt 0:03:15]} 23. Rb1 {[%emt 0:04:18]} b5 {[%emt 0:00:16]} 24. Qg3 {[%emt 0:04:30]} Raa8 {[%emt 0:02:56]} 25. h4 {[%emt 0:09:09]} Nf8 {[%emt 0:01:33]} 26. Rxe8 {[%emt 0:04:55]} Rxe8 {[%emt 0:02:05]} 27. Rb2 {[%emt 0:01:24]} Qe7 {[%emt 0:02:13]} 28. Kh2 {[%emt 0:03:54]} Qxa3 {[%emt 0:01:53]} 29. Re2 {[%emt 0:03:01]} Qa8 {[%emt 0:00:03]} 30. Rxe8 {[%emt 0:00:35]} Qxe8 {[%emt 0:00:01]} 31. f5 {[%emt 0:00:22]} Kf7 {[%emt 0:09:04]} 32. Ba3 {[%emt 0:01:29]} Qd8 {[%emt 0:02:06]} 33. h5 {[%emt 0:01:37]} h6 {[%emt 0:00:49]} 34. Bc1 {[%emt 0:01:16]} Qd7 {[%emt 0:01:30]} 35. Qg4 {[%emt 0:00:53]} Qe7 {[%emt 0:02:33]} 36. Bd2 {[%emt 0:04:50]} c5 {[%emt 0:07:18]} 37. Qf3 {[%emt 0:00:56]} Qd6+ {[%emt 0:00:01]} 38. Bf4 {[%emt 0:00:12]} Qc6 {[%emt 0:00:02]} 39. dxc5 {[%emt 0:01:14]} Qxc5 {[%emt 0:00:01]} 40. Qe2 {[%emt 0:00:45]} Qxc3 {[%emt 0:03:55]} 41. Qxb5 {[%emt 0:00:19]} Qc4 {[%emt 0:00:14]} 42. Qb7+ {[%emt 0:00:49]} Kg8 {[%emt 0:00:01]} 43. Bd6 {[%emt 0:00:18]} Qh4+ {[%emt 0:00:25]} 44. Kg1 {[%emt 0:00:09]} Qd4+ {[%emt 0:04:52]} 45. Kh2 {[%emt 0:00:14]} Qh4+ {[%emt 0:02:39]} 46. Kg1 {[%emt 0:00:08]} Qe1+ {[%emt 0:00:14]} 1/2-1/2

[Event "2nd Cambridge Open 2024"]
[Site "Cambridge"]
[Date "2024.02.19"]
[Round "2.24"]
[White "McLean, Robert"]
[Black "Payne, Matthew J"]
[Result "1/2-1/2"]
[ECO "C12"]
[WhiteElo "1823"]
[BlackElo "2091"]
[Annotator "RC"]
[PlyCount "72"]
[EventDate "2024.02.18"]
[EventType "swiss"]
[EventCountry "ENG"]
[SourceTitle "playchess.com"]
[Source "ChessBase"]
[SourceQuality "1"]
[TimeControl "5400+30"]

1. e4 {[%emt 0:00:02]} e6 {[%emt 0:00:11]} 2. d4 {[%emt 0:00:28]} d5 {[%emt 0:00:09]} 3. Nc3 {[%emt 0:00:10]} Nf6 {[%emt 0:00:12]} 4. Bg5 {[%emt 0:00:08]} Bb4 {[%emt 0:00:09]} 5. e5 {[%emt 0:00:20]} h6 {[%emt 0:00:09]} 6. Bd2 {[%emt 0:00:14]} Bxc3 {[%emt 0:00:30]} 7. bxc3 {[%emt 0:00:05]} Ne4 {[%emt 0:00:12]} 8. Qg4 {[%emt 0:00:09]} g6 {[%emt 0:00:14]} 9. Bd3 {[%emt 0:00:27]} Nxd2 {[%emt 0:01:05]} 10. Kxd2 {[%emt 0:00:05]} c5 {[%emt 0:00:21]} 11. h4 {[%emt 0:00:21]} Nc6 {[%emt 0:01:04]} 12. Nf3 {[%emt 0:00:15]} Qe7 {[%emt 0:02:38]} 13. Qf4 {[%emt 0:02:03]} c4 {[%emt 0:10:44]} 14. Be2 {[%emt 0:00:05]} Bd7 {[%emt 0:00:17]} 15. a4 {[%emt 0:02:33]} O-O-O {[%emt 0:03:29]} 16. g4 {[%emt 0:02:32]} Rdf8 {[%emt 0:08:25]} 17. Qf6 {[%emt 0:03:05]} Kc7 {[%emt 0:07:53]} 18. Qxe7 {[%emt 0:10:25]} Nxe7 {[%emt 0:00:09]} 19. a5 {[%emt 0:00:56]} a6 {[%emt 1:02:09]} 20. Ke3 {[%emt 0:05:43]} Bb5 {[%emt 0:00:00]} 21. Rh3 {[%emt 0:09:03]} b6 {[%emt 0:00:00]} 22. axb6+ {[%emt 0:00:18]} Kxb6 {[%emt 0:00:00]} 23. Nd2 {[%emt 0:03:05]} a5 {[%emt 0:00:00]} 24. f4 {[%emt 0:01:03]} Ra8 {[%emt 0:00:00]} 25. h5 {[%emt 0:01:50]} a4 {[%emt 0:00:00]} 26. Nb1 {[%emt 0:01:44]} Be8 {[%emt 0:00:00]} 27. Na3 {[%emt 0:04:54]} gxh5 {[%emt 0:00:00]} 28. Rxh5 {[%emt 0:00:50]} f5 {[%emt 0:00:00]} 29. Rhh1 {[%emt 0:00:54]} Bd7 {[%emt 0:00:00]} 30. Rab1+ {[%emt 0:01:17]} Kc7 {[%emt 0:00:00]} 31. g5 {[%emt 0:05:09]} hxg5 {[%emt 0:00:00]} 32. fxg5 {[%emt 0:00:29]} Rag8 {[%emt 0:00:00]} 33. Kf4 {[%emt 0:04:33]} Ng6+ {[%emt 0:00:00]} 34. Kg3 {[%emt 0:00:37]} Rg7 {[%emt 0:00:00]} 35. Bf3 {[%emt 0:07:39]} Rhg8 {[%emt 0:00:00]} 36. Rh5 {[%emt 0:05:36]} Nf8 {[%emt 0:00:00]} 1/2-1/2

[Event "2nd Cambridge Open 2024"]
[Site "Cambridge"]
[Date "2024.02.19"]
[Round "2.25"]
[White "Ismail, Mohammed Aayan"]
[Black "Simpson, Ben"]
[Result "0-1"]
[ECO "A29"]
[WhiteElo "2115"]
[BlackElo "1873"]
[Annotator "RC"]
[PlyCount "124"]
[EventDate "2024.02.18"]
[EventType "swiss"]
[EventCountry "ENG"]
[SourceTitle "playchess.com"]
[Source "ChessBase"]
[SourceQuality "1"]
[TimeControl "5400+30"]

1. c4 {[%emt 0:01:59]} e5 {[%emt 0:01:12]} 2. Nc3 {[%emt 0:00:12]} Nf6 {[%emt 0:00:06]} 3. Nf3 {[%emt 0:01:17]} Nc6 {[%emt 0:00:06]} 4. g3 {[%emt 0:00:44]} Bb4 {[%emt 0:01:49]} 5. Bg2 {[%emt 0:01:56]} O-O {[%emt 0:00:57]} 6. O-O {[%emt 0:01:05]} e4 {[%emt 0:04:33]} 7. Ng5 {[%emt 0:10:15]} Bxc3 {[%emt 0:00:23]} 8. bxc3 {[%emt 0:02:17]} Qe7 {[%emt 0:00:52]} 9. d3 {[%emt 0:02:53]} exd3 {[%emt 0:03:46]} 10. exd3 {[%emt 0:00:47]} Re8 {[%emt 0:00:31]} 11. Bf4 {[%emt 0:08:04]} h6 {[%emt 0:05:58]} 12. Nf3 {[%emt 0:04:34]} d6 {[%emt 0:10:23]} 13. Re1 {[%emt 0:02:25]} Qf8 {[%emt 0:01:32]} 14. Rxe8 {[%emt 0:05:56]} Nxe8 {[%emt 0:07:07]} 15. Rb1 {[%emt 0:04:26]} Rb8 {[%emt 0:09:19]} 16. Nd4 {[%emt 0:02:06]} Nxd4 {[%emt 0:07:56]} 17. cxd4 {[%emt 0:00:09]} g5 {[%emt 0:07:55]} 18. Bc1 {[%emt 0:04:38]} b6 {[%emt 0:02:40]} 19. Qa4 {[%emt 0:08:34]} a5 {[%emt 0:04:23]} 20. Bb2 {[%emt 0:04:34]} Qe7 {[%emt 0:08:02]} 21. d5 {[%emt 0:08:15]} Bf5 {[%emt 0:03:38]} 22. Qc2 {[%emt 0:02:15]} f6 {[%emt 0:02:33]} 23. Qc3 {[%emt 0:01:39]} Qh7 {[%emt 0:00:35]} 24. Bf1 {[%emt 0:01:47]} Rd8 {[%emt 0:07:18]} 25. Re1 {[%emt 0:01:11]} Qg6 {[%emt 0:00:07]} 26. Re3 {[%emt 0:02:22]} Kf8 {[%emt 0:01:20]} 27. h3 {[%emt 0:01:44]} h5 {[%emt 0:00:18]} 28. Qd4 {[%emt 0:01:37]} g4 {[%emt 0:01:46]} 29. hxg4 {[%emt 0:04:38]} hxg4 {[%emt 0:00:01]} 30. Bg2 {[%emt 0:01:46]} Rd7 {[%emt 0:00:56]} 31. Kf1 {[%emt 0:02:43]} Re7 {[%emt 0:00:44]} 32. Ke2 {[%emt 0:00:40]} Kf7 {[%emt 0:01:01]} 33. Kd2 {[%emt 0:02:16]} Ng7 {[%emt 0:00:46]} 34. Bf1 {[%emt 0:01:36]} Qg5 {[%emt 0:00:27]} 35. Ke2 {[%emt 0:00:36]} Bd7 {[%emt 0:00:34]} 36. Rxe7+ {[%emt 0:00:25]} Kxe7 {[%emt 0:00:01]} 37. Qe4+ {[%emt 0:01:47]} Kf7 {[%emt 0:00:08]} 38. Qh7 {[%emt 0:00:34]} Qf5 {[%emt 0:02:16]} 39. Qh8 {[%emt 0:00:58]} Qf3+ {[%emt 0:00:24]} 40. Ke1 {[%emt 0:00:00]} Bf5 {[%emt 0:01:34]} 41. Qh6 {[%emt 0:01:33]} Bg6 {[%emt 0:03:12]} 42. Be2 {[%emt 0:00:50]} Qf5 {[%emt 0:01:11]} 43. Qh8 {[%emt 0:00:46]} Qg5 {[%emt 0:00:44]} 44. Qd8 {[%emt 0:00:25]} Ne8 {[%emt 0:00:13]} 45. Qd7+ {[%emt 0:00:12]} Kf8 {[%emt 0:00:05]} 46. Bd4 {[%emt 0:01:19]} Qc1+ {[%emt 0:00:41]} 47. Bd1 {[%emt 0:00:04]} Bxd3 {[%emt 0:00:13]} 48. Qxg4 {[%emt 0:00:51]} Qxc4 {[%emt 0:00:11]} 49. Qf4 {[%emt 0:00:24]} Qb4+ {[%emt 0:00:16]} 50. Qd2 {[%emt 0:00:34]} Qxd4 {[%emt 0:00:02]} 51. Qh6+ {[%emt 0:00:24]} Kf7 {[%emt 0:00:13]} 52. Bh5+ {[%emt 0:00:15]} Ke7 {[%emt 0:00:14]} 53. f4 {[%emt 0:01:01]} Qc3+ {[%emt 0:01:27]} 54. Kd1 {[%emt 0:00:25]} Bc2+ {[%emt 0:00:08]} 55. Ke2 {[%emt 0:00:06]} Qd3+ {[%emt 0:00:15]} 56. Kf2 {[%emt 0:00:06]} Qh7 {[%emt 0:00:48]} 57. Qxh7+ {[%emt 0:00:04]} Bxh7 {[%emt 0:00:09]} 58. Ke3 {[%emt 0:00:43]} Bb1 {[%emt 0:00:42]} 59. a3 {[%emt 0:00:19]} Ng7 {[%emt 0:00:38]} 60. Bf3 {[%emt 0:00:28]} Nf5+ {[%emt 0:00:07]} 61. Kf2 {[%emt 0:00:33]} Nd4 {[%emt 0:00:05]} 62. Bg2 {[%emt 0:00:15]} Nb5 {[%emt 0:00:12]} 0-1

[Event "2nd Cambridge Open 2024"]
[Site "Cambridge"]
[Date "2024.02.19"]
[Round "2.26"]
[White "Okhai, Shabir"]
[Black "Samarakoon, Vivash Ransara"]
[Result "0-1"]
[ECO "C54"]
[WhiteElo "2114"]
[BlackElo "1839"]
[Annotator "RC"]
[PlyCount "152"]
[EventDate "2024.02.18"]
[EventType "swiss"]
[EventCountry "ENG"]
[SourceTitle "playchess.com"]
[Source "ChessBase"]
[SourceQuality "1"]
[TimeControl "5400+30"]

1. e4 {[%emt 0:00:01]} e5 {[%emt 0:00:08]} 2. Nf3 {[%emt 0:00:05]} Nc6 {[%emt 0:00:07]} 3. Bc4 {[%emt 0:00:05]} Bc5 {[%emt 0:00:07]} 4. c3 {[%emt 0:00:05]} d6 {[%emt 0:00:30]} 5. O-O {[%emt 0:01:11]} Nf6 {[%emt 0:02:43]} 6. d3 {[%emt 0:00:12]} O-O {[%emt 0:00:11]} 7. Re1 {[%emt 0:00:45]} a5 {[%emt 0:01:45]} 8. Bg5 {[%emt 0:00:54]} h6 {[%emt 0:00:27]} 9. Bh4 {[%emt 0:00:05]} g5 {[%emt 0:02:08]} 10. Bg3 {[%emt 0:00:06]} Bb6 {[%emt 0:04:00]} 11. Nbd2 {[%emt 0:06:26]} Qe7 {[%emt 0:04:44]} 12. Bb3 {[%emt 0:03:42]} Kg7 {[%emt 0:03:19]} 13. Nc4 {[%emt 0:01:05]} Ba7 {[%emt 0:01:24]} 14. Ne3 {[%emt 0:04:48]} Bxe3 {[%emt 0:04:08]} 15. fxe3 {[%emt 0:02:25]} Bd7 {[%emt 0:12:40]} 16. Rf1 {[%emt 0:02:50]} Be6 {[%emt 0:09:46]} 17. Ba4 {[%emt 0:01:46]} Nd7 {[%emt 0:01:46]} 18. d4 {[%emt 0:04:38]} Bc4 {[%emt 0:01:50]} 19. Re1 {[%emt 0:01:39]} f6 {[%emt 0:04:54]} 20. Bc2 {[%emt 0:02:18]} Rad8 {[%emt 0:08:58]} 21. Bf2 {[%emt 0:02:19]} Bf7 {[%emt 0:01:36]} 22. Nd2 {[%emt 0:01:40]} Nb6 {[%emt 0:07:17]} 23. Nf1 {[%emt 0:03:45]} Qd7 {[%emt 0:03:12]} 24. Ng3 {[%emt 0:02:07]} Ne7 {[%emt 0:04:07]} 25. Bd3 {[%emt 0:02:10]} Bc4 {[%emt 0:00:41]} 26. Bc2 {[%emt 0:03:13]} Bf7 {[%emt 0:03:38]} 27. Qe2 {[%emt 0:02:45]} Bc4 {[%emt 0:03:03]} 28. Qd2 {[%emt 0:00:04]} Bf7 {[%emt 0:00:39]} 29. Bd1 {[%emt 0:01:30]} Bg6 {[%emt 0:00:30]} 30. Bf3 {[%emt 0:03:16]} c6 {[%emt 0:06:17]} 31. Qd1 {[%emt 0:01:30]} Qe8 {[%emt 0:01:33]} 32. Qb3 {[%emt 0:05:14]} Nec8 {[%emt 0:00:41]} 33. Bg4 {[%emt 0:01:05]} Qe7 {[%emt 0:01:34]} 34. Qd1 {[%emt 0:03:44]} Qf7 {[%emt 0:01:31]} 35. b3 {[%emt 0:02:18]} Ne7 {[%emt 0:00:31]} 36. Rf1 {[%emt 0:01:34]} Qg8 {[%emt 0:02:53]} 37. Be1 {[%emt 0:03:28]} Qh7 {[%emt 0:00:05]} 38. c4 {[%emt 0:32:42]} Ra8 {[%emt 0:00:01]} 39. Qf3 {[%emt 0:00:00]} d5 {[%emt 0:03:07]} 40. exd5 {[%emt 0:00:00]} e4 {[%emt 0:00:35]} 41. Qe2 {[%emt 0:00:00]} cxd5 {[%emt 0:00:54]} 42. c5 {[%emt 0:00:00]} Nbc8 {[%emt 0:00:18]} 43. Qb5 {[%emt 0:00:00]} f5 {[%emt 0:00:37]} 44. Bh5 {[%emt 0:00:00]} f4 {[%emt 0:00:23]} 45. Bxg6 {[%emt 0:00:00]} Qxg6 {[%emt 0:00:07]} 46. Ne2 {[%emt 0:00:00]} f3 {[%emt 0:01:02]} 47. Nc3 {[%emt 0:00:00]} Qc6 {[%emt 0:01:00]} 48. Bg3 {[%emt 0:00:00]} Nf5 {[%emt 0:00:16]} 49. Be5+ {[%emt 0:00:00]} Kg6 {[%emt 0:00:02]} 50. Qxc6+ {[%emt 0:00:00]} bxc6 {[%emt 0:00:03]} 51. Nd1 {[%emt 0:00:00]} Nh4 {[%emt 0:01:04]} 52. g3 {[%emt 0:00:00]} Nf5 {[%emt 0:00:11]} 53. Kf2 {[%emt 0:00:00]} Rf7 {[%emt 0:00:42]} 54. Nc3 {[%emt 0:00:00]} h5 {[%emt 0:00:18]} 55. Na4 {[%emt 0:00:00]} Rb7 {[%emt 0:00:09]} 56. Rg1 {[%emt 0:00:00]} Nh6 {[%emt 0:00:14]} 57. h3 {[%emt 0:00:00]} Kf5 {[%emt 0:00:59]} 58. Rab1 {[%emt 0:00:00]} Ra6 {[%emt 0:00:42]} 59. Bd6 {[%emt 0:00:48]} Ra8 {[%emt 0:01:00]} 60. Bf8 {[%emt 0:01:09]} Ng8 {[%emt 0:00:37]} 61. g4+ {[%emt 0:00:17]} hxg4 {[%emt 0:00:15]} 62. Rxg4 {[%emt 0:01:48]} Nf6 {[%emt 0:00:31]} 63. Rg3 {[%emt 0:00:06]} Nh5 {[%emt 0:00:06]} 64. Rgg1 {[%emt 0:00:10]} Nf6 {[%emt 0:00:28]} 65. Bd6 {[%emt 0:00:46]} Rh7 {[%emt 0:01:07]} 66. Rh1 {[%emt 0:01:18]} Nxd6 {[%emt 0:01:19]} 67. cxd6 {[%emt 0:00:02]} Ke6 {[%emt 0:00:00]} 68. Rbg1 {[%emt 0:01:12]} Rg8 {[%emt 0:00:00]} 69. Nc5+ {[%emt 0:01:12]} Kxd6 {[%emt 0:00:00]} 70. Rc1 {[%emt 0:00:39]} g4 {[%emt 0:01:01]} 71. Rcg1 {[%emt 0:00:30]} gxh3 {[%emt 0:00:52]} 72. Rxg8 {[%emt 0:00:21]} Nxg8 {[%emt 0:01:07]} 73. Rh2 {[%emt 0:01:19]} Nf6 {[%emt 0:00:00]} 74. Kg3 {[%emt 0:00:22]} Rg7+ {[%emt 0:00:00]} 75. Kxh3 {[%emt 0:00:13]} Ng4 {[%emt 0:00:00]} 76. Rb2 {[%emt 0:01:29]} f2 {[%emt 0:00:00]} 0-1

[Event "2nd Cambridge Open 2024"]
[Site "Cambridge"]
[Date "2024.02.19"]
[Round "2.27"]
[White "Bharat Kumar, Balahari"]
[Black "McMahon, Paul"]
[Result "1/2-1/2"]
[ECO "D53"]
[WhiteElo "1995"]
[BlackElo "1862"]
[Annotator "NA RC"]
[PlyCount "66"]
[EventDate "2024.02.18"]
[EventType "swiss"]
[EventCountry "ENG"]
[SourceTitle "playchess.com"]
[Source "ChessBase"]
[SourceQuality "1"]
[TimeControl "5400+30"]

1. d4 {[%emt 0:00:07]} d5 {[%emt 0:00:03]} 2. c4 {[%emt 0:00:15]} e6 {[%emt 0:00:11]} 3. Nc3 {[%emt 0:00:07]} Nf6 {[%emt 0:00:12]} 4. Bg5 {[%emt 0:00:13]} Be7 {[%emt 0:00:26]} 5. e3 {[%emt 0:00:08]} h6 {[%emt 0:00:14]} 6. Bh4 {[%emt 0:00:16]} Nbd7 {[%emt 0:00:50]} 7. Nf3 {[%emt 0:00:20]} Ne4 {[%emt 0:00:35]} 8. Bxe7 {[%emt 0:01:17]} Qxe7 {[%emt 0:00:10]} 9. Nxe4 {[%emt 0:12:36]} dxe4 {[%emt 0:00:22]} 10. Nd2 {[%emt 0:00:37]} f5 {[%emt 0:00:24]} 11. Qh5+ {[%emt 0:00:29]} Qf7 {[%emt 0:04:46]} 12. Qxf7+ {[%emt 0:00:34]} Kxf7 {[%emt 0:00:04]} 13. f3 {[%emt 0:00:55]} exf3 {[%emt 0:02:34]} 14. gxf3 {[%emt 0:01:02]} b6 {[%emt 0:06:19]} 15. e4 {[%emt 0:04:49]} Bb7 {[%emt 0:01:58]} 16. Bd3 {[%emt 0:05:23]} g6 {[%emt 0:03:49]} 17. O-O-O {[%emt 0:02:59]} Rad8 {[%emt 0:08:23]} 18. Bc2 {[%emt 0:04:30]} Nf6 {[%emt 0:03:08]} 19. d5 {[%emt 0:09:05]} exd5 {[%emt 0:04:54]} 20. cxd5 {[%emt 0:00:50]} g5 {[%emt 0:08:03]} 21. Nc4 {[%emt 0:04:09]} Rhe8 {[%emt 0:02:04]} 22. d6 {[%emt 0:02:29]} Ba6 {[%emt 0:11:21]} 23. Bb3 {[%emt 0:03:00]} Kf8 {[%emt 0:04:26]} 24. dxc7 {[%emt 0:08:48]} Rxd1+ {[%emt 0:00:28]} 25. Rxd1 {[%emt 0:01:24]} Rc8 {[%emt 0:01:03]} 26. Rd8+ {[%emt 0:25:53]} Ke7 {[%emt 0:01:21]} 27. Rxc8 {[%emt 0:00:46]} Bxc8 {[%emt 0:00:04]} 28. exf5 {[%emt 0:02:07]} Ne8 {[%emt 0:10:42]} 29. Ne5 {[%emt 0:01:06]} Bxf5 {[%emt 0:01:04]} 30. Nc6+ {[%emt 0:02:03]} Kd6 {[%emt 0:00:55]} 31. Nd4 {[%emt 0:02:11]} Bd7 {[%emt 0:05:24]} 32. Nb5+ {[%emt 0:03:51]} Kc5 {[%emt 0:01:57]} 33. Bf7 {[%emt 0:01:07]} Nd6 {[%emt 0:02:52]} 1/2-1/2